bitfinex-derivatives/quotes_BTCF0:USTF0_20250207
["timestamp","ask_amount","ask_price","bid_price","bid_amount"]
[1738938977382,0.561933,99392.0,99359.0,0.201199]
[1738938977383,0.2011845,99367.0,99359.0,0.201199]
[1738938977588,0.5619683,99375.0,99373.0,0.2011708]
[1738938977786,0.3608,99375.0,99373.0,0.2011708]
[1738938978191,0.3608,99375.0,99364.0,0.2011879]
[1738938978488,0.1998078,99366.0,99364.0,0.00015095]
[1738938979591,0.3608,99367.0,99362.0,0.2011936]
[1738938979978,0.2011856,99366.0,99362.0,0.2011936]
[1738938980182,0.3608,99367.0,99361.0,0.2011943]
[1738938980484,0.3608,99367.0,99365.0,0.201186]
[1738938980685,0.009,99366.0,99365.0,0.201186]
[1738938980888,0.009,99366.0,99365.0,0.481186]
[1738938981087,0.3698,99367.0,99365.0,0.481186]
[1738938981486,0.570985,99367.0,99365.0,0.28]
[1738938981690,0.2011917,99363.0,99362.0,0.001]
[1738938981889,0.2012079,99355.0,99354.0,0.00015095]
[1738938982085,0.5620079,99355.0,99354.0,0.00015095]
[1738938982279,0.3608,99355.0,99354.0,0.00015095]
[1738938982479,0.2011934,99363.0,99358.0,0.2012]
[1738938982682,0.2011964,99361.0,99358.0,0.2012]
[1738938982881,0.3698,99367.0,99366.0,0.2011856]
[1738938983685,0.2011856,99366.0,99365.0,0.001]
[1738938983887,0.2011877,99365.0,99364.0,0.001]
[1738938984284,0.2011877,99365.0,99364.0,0.00237783]
[1738938984685,0.3788,99367.0,99364.0,0.00137783]
[1738938984887,0.018,99367.0,99366.0,0.3608]
[1738938985189,0.2011347,99392.0,99383.0,0.2011512]
[1738938985388,0.3608,99394.0,99383.0,0.2011512]
[1738938985591,0.1705,99409.0,99379.0,0.3608]
[1738938985592,0.3716003,99409.0,99379.0,0.3608]
[1738938985781,0.1705,99409.0,99388.0,0.3608]
[1738938985982,0.2011146,99402.0,99396.0,0.2011234]
[1738938986390,0.2011168,99400.0,99399.0,0.00137783]
[1738938987288,0.5619168,99400.0,99399.0,0.00137783]
[1738938987591,0.6608,99400.0,99390.0,0.00015095]
[1738938987779,0.20116,99379.0,99364.0,0.001]
[1738938987983,0.20116,99379.0,99376.0,0.2011644]
[1738938988181,0.001,99384.0,99382.0,0.2011517]
[1738938988778,0.2011425,99388.0,99370.0,0.27050013]
[1738938988980,0.3608,99391.0,99374.0,0.2011677]
[1738938988981,0.2011582,99380.0,99374.0,0.2011677]
[1738938989187,0.3608,99375.0,99373.0,0.00015095]
[1738938989387,0.3608,99391.0,99389.0,0.2011386]
[1738938989789,0.3608,99391.0,99383.0,0.2011491]
[1738938989982,0.3608,99391.0,99373.0,0.00015095]
[1738938990192,0.00015095,99393.0,99388.0,0.3608]
[1738938990497,5e-08,99393.0,99392.0,0.5619326]
[1738938990792,5e-08,99393.0,99392.0,0.2011326]
[1738938990996,5e-08,99393.0,99392.0,0.8619326]
[1738938991185,5e-08,99393.0,99392.0,1.2227326]
[1738938991384,0.17990431,99408.0,99392.0,1.03201043]
[1738938991385,0.06897346,99408.0,99392.0,1.03201043]
[1738938991687,0.3608,99455.0,99407.0,0.6408]
[1738938991900,0.200974,99471.0,99445.0,0.63130013]
[1738938992192,0.3608,99461.0,99445.0,0.27050013]
[1738938992495,0.3608,99461.0,99446.0,0.06096]
[1738938992703,0.3608,99461.0,99456.0,0.2010031]
[1738938992991,0.3608,99461.0,99449.0,0.3608]
[1738938993201,0.3608,99461.0,99459.0,0.2009963]
[1738938993490,0.3608,99461.0,99443.0,0.00015087]
[1738938993491,0.2010274,99445.0,99443.0,0.00015087]
[1738938993697,0.3608,99445.0,99443.0,0.00015087]
[1738938994085,0.1626,99460.0,99443.0,0.00015087]
[1738938994285,0.3608,99461.0,99448.0,0.2010183]
[1738938994492,0.3608,99461.0,99443.0,0.00015087]
[1738938994794,0.2009981,99459.0,99447.0,0.2010195]
[1738938994993,0.3608,99461.0,99450.0,0.2010135]
[1738938995189,0.00015087,99463.0,99460.0,0.2009934]
[1738938995899,0.00015087,99463.0,99462.0,0.2009911]
[1738938996393,0.00015087,99463.0,99456.0,0.2010014]
[1738938996597,0.00015087,99463.0,99458.0,0.3608]
[1738938996797,0.00015087,99463.0,99460.0,0.200994]
[1738938997294,0.00115087,99463.0,99460.0,0.200994]
[1738938998585,0.00115087,99463.0,99450.0,0.63182013]
[1738938998586,0.00115087,99463.0,99454.0,0.2010058]
[1738938998895,0.2010133,99451.0,99450.0,0.36132]
[1738938999092,0.2010173,99449.0,99443.0,0.00015087]
[1738938999292,0.2010274,99444.0,99443.0,0.00015087]
[1738938999593,0.3608,99462.0,99443.0,0.00015087]
[1738938999806,0.00115087,99463.0,99451.0,0.3608]
[1738938999993,0.00115087,99463.0,99461.0,0.5617919]
[1738939000296,0.00115087,99463.0,99461.0,0.2009919]
[1738939000507,0.00015087,99463.0,99461.0,0.5617919]
[1738939000692,0.3608,99496.0,99461.0,0.6608]
[1738939000996,0.3608,99511.0,99461.0,0.6608]
[1738939000997,0.3747165,99499.0,99489.0,0.2009353]
[1738939001301,0.1738,99499.0,99489.0,0.2009353]
[1738939001498,0.2009294,99493.0,99489.0,0.2009353]
[1738939002190,0.001,99496.0,99481.0,0.00015079]
[1738939002394,0.001,99496.0,99493.0,0.200927]
[1738939002595,0.001,99496.0,99481.0,0.00015079]
[1738939002596,0.3608,99494.0,99481.0,0.00015079]
[1738939002792,0.2009506,99482.0,99481.0,0.00015079]
[1738939003394,0.3608,99486.0,99484.0,0.200946]
[1738939003595,0.001,99493.0,99492.0,0.2009305]
[1738939003790,0.00084,99519.0,99492.0,0.3]
[1738939003992,0.3608,99543.0,99499.0,0.3608]
[1738939004201,0.16304,99544.0,99530.0,0.3608]
[1738939004497,0.2008075,99553.0,99539.0,0.2008352]
[1738939004698,0.3608,99561.0,99544.0,0.3608]
[1738939004893,0.3608,99552.0,99530.0,0.42196]
[1738939005089,0.3608,99552.0,99530.0,0.3608]
[1738939005401,0.3608,99552.0,99510.0,0.27050013]
[1738939005402,0.3608,99544.0,99535.0,0.00015071]
[1738939006198,0.2008372,99539.0,99535.0,0.00015071]
[1738939006795,0.2008402,99537.0,99535.0,0.00015071]
[1738939006991,0.1487352,99546.0,99535.0,0.00015071]
[1738939007192,0.1487352,99546.0,99545.0,0.3608]
[1738939007401,0.1487352,99546.0,99545.0,0.5616235]
[1738939008007,0.3608,99569.0,99545.0,0.3608]
[1738939008303,0.43873163,99579.0,99568.0,0.2007771]
[1738939008999,0.23797633,99579.0,99575.0,0.2007629]
[1738939009201,0.23797633,99579.0,99576.0,0.3608]
[1738939009394,0.23797633,99579.0,99574.0,0.3608]
[1738939009598,0.2007816,99566.0,99564.0,0.00015071]
[1738939010907,0.2007816,99566.0,99540.0,0.06036]
[1738939011098,0.3608,99555.0,99540.0,0.06036]
[1738939011807,0.2008236,99545.0,99540.0,0.06036]
[1738939012102,0.2008479,99533.0,99531.0,0.00150694]
[1738939013201,0.05035313,99552.0,99540.0,0.004]
[1738939013202,0.00015043,99552.0,99540.0,0.004]
[1738939013396,0.00015043,99552.0,99550.0,0.2008123]
[1738939014199,0.20096093,99552.0,99547.0,0.06068]
[1738939014401,0.2008307,99542.0,99540.0,0.002]
[1738939014600,0.00015043,99552.0,99540.0,0.002]
[1738939014807,0.00015043,99552.0,99542.0,0.3608]
[1738939015007,0.00015043,99552.0,99551.0,0.2008114]
[1738939015204,0.00015043,99552.0,99551.0,0.5616114]
[1738939015397,0.00015043,99552.0,99551.0,0.6218914]
[1738939015799,0.00015043,99552.0,99551.0,0.2610914]
[1738939016007,0.00015043,99552.0,99551.0,0.6218914]
[1738939016300,0.3608,99583.0,99551.0,0.6218914]
[1738939016301,0.3608,99583.0,99579.0,0.2007549]
[1738939016503,0.3608,99583.0,99580.0,0.2007516]
[1738939016695,0.3608,99583.0,99573.0,0.3608]
[1738939016899,0.3476,99599.0,99582.0,0.3608]
[1738939017099,0.10088001,99600.0,99598.0,0.2007153]
[1738939017100,0.1,99600.0,99598.0,0.2007153]
[1738939017502,0.1,99600.0,99582.0,0.3608]
[1738939017700,0.200741,99586.0,99581.0,0.00015063]
[1738939017903,0.1,99600.0,99582.0,0.28]
[1738939018098,0.2007197,99597.0,99586.0,0.27050013]
[1738939018302,0.1,99600.0,99596.0,0.2007192]
[1738939018502,0.1,99600.0,99599.0,0.3608]
[1738939018703,0.1,99600.0,99598.0,0.2007154]
[1738939019607,0.1,99600.0,99599.0,0.06012]
[1738939019812,0.1,99600.0,99599.0,0.42092]
[1738939020109,0.2007056,99604.0,99599.0,0.06012]
[1738939020316,0.00150697,99611.0,99610.0,0.2006925]
[1738939020811,0.1719,99634.0,99610.0,0.2006925]
[1738939020812,0.1719,99634.0,99610.0,0.3608]
[1738939021011,0.2006608,99626.0,99617.0,0.2006777]
[1738939021199,0.1719,99634.0,99620.0,0.3608]
[1738939021402,0.70162,99643.0,99629.0,0.3608]
[1738939021403,0.34082,99643.0,99629.0,0.3608]
[1738939021615,0.1719,99671.0,99641.0,0.3608]
[1738939021809,0.1719,99671.0,99631.0,0.0501624]
[1738939021810,0.1719,99671.0,99658.0,0.3608]
[1738939022111,0.1719,99671.0,99658.0,0.5613956]
[1738939022334,0.1719,99671.0,99645.0,0.3608]
[1738939022613,0.2005998,99656.0,99655.0,5e-08]
[1738939022812,0.9221998,99656.0,99655.0,5e-08]
[1738939023117,0.2006522,99630.0,99611.0,0.3608]
[1738939023312,0.2006522,99630.0,99529.0,0.0502135]
[1738939023313,0.2006965,99608.0,99604.0,0.0604]
[1738939023509,0.2006965,99608.0,99593.0,0.01034152]
[1738939024011,0.5614965,99608.0,99598.0,0.00015055]
[1738939024206,0.2007146,99599.0,99598.0,3e-08]
[1738939024607,0.3608,99613.0,99598.0,3e-08]
[1738939024806,0.200699,99607.0,99599.0,0.06052]
[1738939025004,0.3608,99609.0,99599.0,0.06052]
[1738939025208,0.3608,99600.0,99599.0,0.06052]
[1738939025408,0.2007146,99599.0,99598.0,0.00500003]
[1738939026318,0.2007146,99599.0,99598.0,3e-08]
[1738939028515,0.2017146,99599.0,99598.0,3e-08]
[1738939028705,0.5620746,99599.0,99598.0,3e-08]
[1738939028911,0.5620746,99599.0,99558.0,0.2007965]
[1738939028912,0.2007734,99570.0,99558.0,0.2007965]
[1738939029208,0.36136,99599.0,99550.0,0.27050013]
[1738939029209,0.3608,99574.0,99550.0,0.27050013]
[1738939029408,0.2008036,99555.0,99544.0,0.2008235]
[1738939029615,0.3608,99576.0,99543.0,0.3608]
[1738939029826,0.200774,99570.0,99560.0,0.2007917]
[1738939030014,0.3608,99567.0,99544.0,0.3404]
[1738939030321,0.2007944,99560.0,99550.0,0.00015064]
[1738939030521,0.2008114,99551.0,99550.0,0.00015064]
[1738939030721,0.2007946,99560.0,99550.0,0.00015064]
[1738939030928,0.3608,99567.0,99563.0,0.2007871]
[1738939031122,0.3608,99567.0,99558.0,0.001]
[1738939031419,0.3608,99567.0,99561.0,0.20079]
[1738939031722,0.2007823,99566.0,99561.0,0.20079]
[1738939032314,0.3608,99567.0,99550.0,0.01415064]
[1738939032516,0.3608,99567.0,99565.0,0.2007821]
[1738939032817,0.00064,99584.0,99569.0,0.2007739]
[1738939033024,0.3608,99577.0,99569.0,0.2007739]
[1738939033209,0.3608,99577.0,99563.0,0.06048]
[1738939033410,0.200784,99565.0,99563.0,0.06048]
[1738939034019,0.2007805,99567.0,99551.0,0.3608]
[1738939034220,0.3608,99568.0,99551.0,0.3608]
[1738939034417,0.2008094,99553.0,99551.0,0.3608]
[1738939034625,0.3608,99568.0,99551.0,0.3608]
[1738939034816,0.00015019,99574.0,99551.0,0.7231]
[1738939035017,0.00015019,99574.0,99572.0,0.2007681]
[1738939035521,0.00015019,99574.0,99573.0,0.3608]
[1738939035830,0.2007168,99598.0,99573.0,0.3608]
[1738939036015,0.2007065,99604.0,99598.0,0.2007148]
[1738939036217,0.36230694,99613.0,99594.0,0.6408]
[1738939036423,0.3608,99605.0,99584.0,0.3608]
[1738939036623,0.3608,99595.0,99560.0,0.63130013]
[1738939036823,0.2007355,99589.0,99580.0,0.2007512]
[1738939037011,0.2007362,99589.0,99586.0,0.3608]
[1738939037215,0.2007385,99588.0,99585.0,0.20089214]
[1738939037427,0.2007397,99587.0,99585.0,0.00015064]
[1738939037723,0.3608,99586.0,99585.0,0.00015064]
[1738939038421,0.3608,99586.0,99585.0,0.00715064]
[1738939038622,0.5382,99586.0,99585.0,0.01115064]
[1738939039120,0.3608,99586.0,99585.0,0.01115064]
[1738939039323,0.3608,99586.0,99585.0,0.00715064]
[1738939040426,0.3608,99586.0,99565.0,0.2007828]
[1738939040724,0.2007892,99562.0,99561.0,0.1751482]
[1738939041224,0.3608,99564.0,99554.0,0.00052]
[1738939041428,0.3608,99555.0,99534.0,0.1751482]
[1738939041726,0.3608,99567.0,99549.0,0.00015064]
[1738939042021,0.2008134,99550.0,99549.0,0.00015064]
[1738939043122,0.3608,99551.0,99549.0,0.20096554]
[1738939043324,0.3608,99551.0,99549.0,0.00015064]
[1738939043518,0.3608,99566.0,99549.0,0.36095064]
[1738939043718,0.3608,99566.0,99564.0,0.2007835]
[1738939043916,0.3608,99566.0,99557.0,0.2007982]
[1738939044131,0.3608,99566.0,99549.0,0.00915064]
[1738939044132,0.2008134,99550.0,99549.0,0.00915064]
[1738939044316,0.001,99551.0,99549.0,0.01815064]
[1738939044520,0.001,99551.0,99549.0,0.21896604]
[1738939044815,0.00015064,99569.0,99568.0,0.2007771]
[1738939045525,0.00015064,99569.0,99568.0,0.5615771]
[1738939046628,0.00015064,99569.0,99568.0,0.3608]
[1738939046930,0.2007973,99558.0,99557.0,0.009]
[1738939047235,0.2007789,99568.0,99550.0,0.0608]
[1738939047415,0.2008035,99555.0,99550.0,0.0608]
[1738939047617,0.2008134,99550.0,99549.0,0.00015064]
[1738939048624,0.3608,99563.0,99561.0,0.2007903]
[1738939048924,0.3608,99575.0,99562.0,0.3608]
[1738939049120,0.2007692,99572.0,99567.0,0.2007784]
[1738939049528,0.2007719,99571.0,99567.0,0.2007784]
[1738939049720,0.3608,99580.0,99567.0,0.2007784]
[1738939050227,0.2007716,99571.0,99567.0,0.2007784]
[1738939050428,0.3608,99580.0,99564.0,0.2007852]
[1738939050429,0.2007816,99566.0,99564.0,0.2007852]
[1738939050826,0.3608,99580.0,99568.0,0.2007771]
[1738939051021,0.3608,99580.0,99568.0,0.5615771]
[1738939051423,0.5615537,99580.0,99568.0,0.5615771]
[1738939051735,0.5615537,99580.0,99561.0,0.1833]
[1738939051736,0.3608,99580.0,99561.0,0.1833]
[1738939052027,0.200765,99575.0,99562.0,0.0608]
[1738939052226,0.3608,99580.0,99567.0,0.2007792]
[1738939052431,0.3608,99580.0,99568.0,0.3608]
[1738939052621,0.5615121,99601.0,99571.0,0.0501927]
[1738939052823,0.3608,99601.0,99590.0,0.3608]
[1738939053028,0.3608,99601.0,99590.0,0.63130013]
[1738939053226,0.00060001,99601.0,99600.0,0.5615126]
[1738939053534,0.14948478,99612.0,99611.0,0.2006905]
[1738939053730,0.14948478,99612.0,99602.0,0.27050013]
[1738939054033,0.2007,99607.0,99600.0,0.3608]
[1738939054233,0.3608,99601.0,99591.0,0.00015064]
[1738939054443,0.5615281,99593.0,99591.0,0.00015064]
[1738939056235,0.5615281,99593.0,99591.0,0.00115064]
[1738939057035,0.5615281,99593.0,99591.0,0.00415064]
[1738939057426,0.5615281,99593.0,99591.0,0.00115064]
[1738939057632,0.3608,99601.0,99591.0,0.00115064]
[1738939057833,0.14948478,99606.0,99591.0,0.00015064]
[1738939058030,0.14948478,99606.0,99591.0,0.20088114]
[1738939058332,0.2007287,99593.0,99591.0,0.00015064]
[1738939058530,0.14948478,99606.0,99592.0,0.3608]
[1738939058732,0.14948478,99606.0,99594.0,0.3608]
[1738939058937,0.3608,99601.0,99591.0,0.00115064]
[1738939059333,0.2007126,99600.0,99596.0,0.2007199]
[1738939059848,0.14948478,99603.0,99591.0,0.00115064]
[1738939060053,0.2007238,99595.0,99591.0,0.00115064]
[1738939060350,0.2007279,99593.0,99591.0,0.00515064]
[1738939060654,0.5615279,99593.0,99591.0,0.00515064]
[1738939060851,0.2007279,99593.0,99591.0,0.00515064]
[1738939061058,0.14948478,99603.0,99591.0,0.00015064]
[1738939061353,0.14948478,99603.0,99591.0,0.00415064]
[1738939061354,0.2007277,99593.0,99591.0,0.00415064]
[1738939061654,0.5615277,99593.0,99591.0,0.00415064]
[1738939062046,0.5615277,99593.0,99591.0,0.00515064]
[1738939062847,0.5615277,99593.0,99591.0,0.00915064]
[1738939063441,0.5615277,99593.0,99591.0,0.20588044]
[1738939063749,0.5615277,99593.0,99591.0,0.00015064]
[1738939064649,0.5615277,99593.0,99591.0,0.00215064]
[1738939064854,0.5615277,99593.0,99591.0,4e-08]
[1738939065056,0.8615277,99593.0,99591.0,4e-08]
[1738939065255,0.8615277,99593.0,99549.0,0.06004]
[1738939065256,0.2008034,99555.0,99549.0,0.06004]
[1738939065450,0.2008034,99555.0,99541.0,0.06008]
[1738939065656,0.3608,99570.0,99541.0,0.06008]
[1738939065958,0.2008034,99555.0,99541.0,0.06008]
[1738939066150,0.2008034,99555.0,99552.0,0.00015064]
[1738939066552,0.2008034,99555.0,99554.0,0.01050649]
[1738939067452,0.3608,99570.0,99554.0,0.01050649]
[1738939067453,0.00015064,99572.0,99554.0,0.73210649]
[1738939067657,0.3608,99596.0,99571.0,0.3608]
[1738939067952,0.200763,99575.0,99574.0,0.28]
[1738939068152,0.2007763,99569.0,99567.0,0.2007788]
[1738939068745,0.2007974,99558.0,99556.0,0.2008003]
[1738939068951,0.3608,99575.0,99554.0,0.01050649]
[1738939068952,0.2008013,99556.0,99554.0,0.01050649]
[1738939069148,0.3608,99555.0,99554.0,0.01050649]
[1738939069355,0.3608,99555.0,99554.0,0.009]
[1738939069859,0.2008175,99548.0,99547.0,0.00015064]
[1738939071152,0.3608,99565.0,99547.0,0.00015064]
[1738939071361,0.2008156,99549.0,99547.0,0.00015064]
[1738939072251,0.2008156,99549.0,99547.0,0.01815064]
[1738939072853,0.3608,99567.0,99547.0,0.01815064]
[1738939073055,0.3608,99567.0,99565.0,0.2007831]
[1738939073360,0.3608,99567.0,99550.0,0.27050013]
[1738939073361,0.3608,99567.0,99557.0,0.2007981]
[1738939073561,0.3608,99567.0,99547.0,0.02873702]
[1738939073562,0.3608,99558.0,99549.0,0.1828]
[1738939073960,0.2008036,99556.0,99555.0,0.2008014]
[1738939074156,0.3608,99558.0,99547.0,0.01715064]
[1738939074357,0.5616175,99548.0,99547.0,0.01715064]
[1738939076967,0.3608,99548.0,99547.0,0.01715064]
[1738939079060,0.14989924,99565.0,99547.0,0.37795064]
[1738939079269,0.14989924,99565.0,99563.0,0.5615865]
[1738939079859,0.2007852,99564.0,99563.0,0.2007865]
[1738939080059,0.14989924,99565.0,99555.0,0.3608]
[1738939080368,0.14989924,99565.0,99558.0,0.3608]
[1738939080568,0.12259869,99565.0,99563.0,0.2007872]
[1738939080767,0.12259869,99565.0,99563.0,0.2017872]
[1738939081064,0.12259869,99565.0,99563.0,0.001]
[1738939081257,0.32338289,99565.0,99563.0,0.001]
[1738939082161,0.3608,99564.0,99563.0,0.004]
[1738939082363,0.2008175,99548.0,99547.0,0.00015064]
[1738939083173,0.200856,99529.0,99527.0,0.1751482]
[1738939083465,0.3608,99531.0,99528.0,0.2008562]
[1738939083768,0.3608,99540.0,99527.0,0.18570386]
[1738939084061,0.3608,99540.0,99527.0,0.1751482]
[1738939084062,0.2008578,99528.0,99527.0,0.1751482]
[1738939084265,0.3608,99532.0,99530.0,0.2008526]
[1738939084466,0.2008451,99535.0,99530.0,0.2008526]
[1738939084769,0.3608,99540.0,99527.0,0.1751482]
[1738939084958,0.2008318,99541.0,99536.0,0.2008403]
[1738939085160,0.2008318,99541.0,99527.0,0.1751482]
[1738939085457,0.2008417,99536.0,99530.0,0.2008519]
[1738939085664,0.3608,99537.0,99527.0,0.1751482]
[1738939085963,0.2008568,99529.0,99527.0,0.1751482]
[1738939086274,0.2028568,99529.0,99528.0,0.001]
[1738939086564,0.002,99529.0,99528.0,0.001]
[1738939086764,0.007,99531.0,99528.0,0.001]
[1738939086966,0.20240101,99537.0,99530.0,0.2008526]
[1738939087270,0.001,99537.0,99531.0,0.2008502]
[1738939087463,0.2008504,99532.0,99524.0,0.20101634]
[1738939087658,0.2028557,99529.0,99528.0,0.001]
[1738939087868,0.2098557,99529.0,99528.0,0.002]
[1738939088258,0.2098557,99529.0,99509.0,0.00150725]
[1738939088259,0.009,99529.0,99509.0,0.00150725]
[1738939088666,0.2008713,99522.0,99518.0,0.2008761]
[1738939088870,0.3608,99519.0,99510.0,0.27050013]
[1738939089167,0.3608,99519.0,99509.0,0.00150725]
[1738939089168,0.5616932,99511.0,99509.0,0.00150725]
[1738939089358,0.3608,99511.0,99505.0,0.00015072]
[1738939089558,0.2009021,99506.0,99505.0,1e-08]
[1738939090265,0.1729,99506.0,99477.0,0.1751482]
[1738939090469,0.2009261,99495.0,99494.0,0.2009258]
[1738939090659,0.002,99522.0,99494.0,0.3608]
[1738939090966,0.3608,99525.0,99510.0,0.2008941]
[1738939091172,0.2009021,99506.0,99505.0,0.006]
[1738939091378,0.2008884,99513.0,99505.0,0.015]
[1738939091560,0.2008744,99520.0,99505.0,0.015]
[1738939091878,0.20102862,99518.0,99516.0,0.2008805]
[1738939092062,0.2008935,99511.0,99509.0,0.2008943]
[1738939092366,0.20102912,99518.0,99513.0,0.2008873]
[1738939092566,0.20102912,99518.0,99505.0,0.015]
[1738939092567,0.00015072,99518.0,99517.0,0.2008799]
[1738939092963,0.2008854,99515.0,99512.0,0.2008899]
[1738939093267,0.200892,99511.0,99510.0,0.001]
[1738939093571,0.200892,99511.0,99509.0,0.004]
[1738939093767,0.200892,99511.0,99510.0,0.2008941]
[1738939094156,0.2008981,99508.0,99507.0,0.3608]
[1738939094661,0.3608,99515.0,99496.0,0.17191072]
[1738939094864,0.2009183,99498.0,99496.0,0.20107162]
[1738939095265,0.2009183,99498.0,99496.0,0.00015072]
[1738939095662,0.2009183,99498.0,99497.0,0.2009203]
[1738939096063,0.1847,99517.0,99497.0,0.3608]
[1738939096266,0.00015072,99518.0,99516.0,0.2008805]
[1738939096665,0.00015072,99518.0,99517.0,0.3608]
[1738939096868,0.17987908,99533.0,99517.0,0.3608]
[1738939097065,0.17987908,99533.0,99532.0,0.2008497]
[1738939097267,0.2008658,99524.0,99523.0,0.27050013]
[1738939097572,0.17987908,99533.0,99523.0,0.05828]
[1738939097762,0.17987908,99533.0,99523.0,0.01025419]
[1738939097964,0.17987908,99533.0,99518.0,0.1844]
[1738939098168,0.2008485,99533.0,99532.0,0.005]
[1738939098563,0.00015072,99538.0,99532.0,0.005]
[1738939098769,0.2008476,99533.0,99532.0,0.005]
[1738939099172,0.2008759,99519.0,99518.0,0.00015072]
[1738939099676,0.2009068,99504.0,99499.0,0.01013489]
[1738939099967,0.3608,99525.0,99509.0,0.2008951]
[1738939100171,0.2008785,99518.0,99515.0,0.2008837]
[1738939100370,0.3608,99525.0,99503.0,0.3608]
[1738939100568,0.2008757,99520.0,99519.0,0.2008732]
[1738939100765,0.2008857,99515.0,99512.0,0.2008886]
[1738939100969,0.00015072,99524.0,99504.0,0.28015072]
[1738939101170,0.2008738,99521.0,99520.0,0.2008707]
[1738939101374,0.2008738,99521.0,99518.0,0.003]
[1738939101375,0.00015072,99524.0,99523.0,0.2008678]
[1738939103362,0.00115072,99524.0,99523.0,0.2008678]
[1738939103568,0.00115072,99524.0,99523.0,0.3909678]
[1738939103771,0.00015072,99524.0,99523.0,0.3959678]
[1738939103978,0.00015072,99524.0,99523.0,0.3989678]
[1738939104272,0.00015072,99524.0,99523.0,0.2668678]
[1738939104577,0.01515072,99524.0,99523.0,0.2608678]
[1738939105170,0.21601652,99524.0,99523.0,0.002]
[1738939106063,0.20101652,99524.0,99523.0,0.009]
[1738939106268,0.00515072,99524.0,99523.0,0.009]
[1738939106681,0.00515072,99524.0,99523.0,0.006]
[1738939106980,0.56281652,99524.0,99523.0,0.014]
[1738939107770,0.20201652,99524.0,99523.0,0.014]
[1738939108166,0.00115072,99524.0,99523.0,0.2148678]
[1738939108873,0.00115072,99524.0,99523.0,0.8556678]
[1738939109080,0.3608,99554.0,99523.0,0.6548]
[1738939109382,0.2008298,99542.0,99538.0,0.2008371]
[1738939109574,0.2008323,99541.0,99538.0,0.2008371]
[1738939109974,0.2008341,99540.0,99538.0,0.2008371]
[1738939110275,0.3608,99543.0,99529.0,0.00015072]
[1738939110678,0.5616284,99543.0,99529.0,0.00015072]
[1738939110871,0.3608,99543.0,99538.0,0.200836]
[1738939111072,0.2008301,99542.0,99538.0,0.200836]
[1738939111271,0.2008301,99542.0,99539.0,0.200834]
[1738939111472,0.2008301,99542.0,99540.0,0.2008331]
[1738939111675,0.2008181,99548.0,99545.0,0.2008229]
[1738939111875,0.00015072,99549.0,99547.0,0.2008175]
[1738939112180,0.5442618,99576.0,99544.0,0.3608]
[1738939112376,0.2007661,99574.0,99562.0,0.2007891]
[1738939112577,0.1729,99576.0,99562.0,0.2007891]
[1738939112773,0.3608,99581.0,99569.0,0.2007737]
[1738939113082,0.1744,99591.0,99570.0,0.27050013]
[1738939113278,0.3608,99584.0,99581.0,0.20075]
[1738939113782,0.3608,99584.0,99571.0,0.2007705]
[1738939114186,0.2007506,99582.0,99571.0,0.2007705]
[1738939114390,0.3608,99584.0,99572.0,0.05792]
[1738939114681,0.2007574,99578.0,99572.0,0.05792]
[1738939115075,0.51079169,99584.0,99569.0,0.3608]
[1738939115277,0.3608,99575.0,99566.0,0.05784]
[1738939115583,0.51079169,99584.0,99583.0,0.2007468]
[1738939115883,0.51079169,99584.0,99575.0,0.200763]
[1738939116093,0.51279169,99584.0,99579.0,0.2007544]
[1738939116282,0.51279169,99584.0,99581.0,0.2007501]
[1738939116488,0.14999169,99584.0,99574.0,0.47126463]
[1738939116985,0.14999169,99584.0,99581.0,0.20075]
[1738939117289,0.15199169,99584.0,99583.0,0.2007468]
[1738939117881,0.15199169,99584.0,99574.0,0.27050013]
[1738939118081,0.15199169,99584.0,99580.0,0.2007528]
[1738939118280,0.2007468,99583.0,99574.0,0.27050013]
[1738939118481,0.15199169,99584.0,99573.0,0.3608]
[1738939118783,0.002,99584.0,99573.0,0.2007656]
[1738939118987,0.20089517,99585.0,99576.0,0.2007606]
[1738939119185,0.003,99584.0,99576.0,0.2007601]
[1738939119883,0.001,99584.0,99576.0,0.2007601]
[1738939120188,0.001,99584.0,99582.0,0.2007476]
[1738939120389,0.00015057,99585.0,99582.0,0.2007476]
[1738939120582,0.001,99584.0,99570.0,0.53561759]
[1738939120887,0.001,99584.0,99571.0,0.2007702]
[1738939121088,0.001,99584.0,99581.0,0.2007497]
[1738939122283,0.00015057,99585.0,99582.0,0.2007481]
[1738939122484,0.00315057,99585.0,99584.0,0.2007448]
[1738939122983,0.00115057,99585.0,99584.0,0.2007448]
[1738939123184,0.00015057,99585.0,99584.0,0.2007448]
[1738939123385,0.00015057,99585.0,99565.0,0.00015065]
[1738939123596,0.3608,99567.0,99540.0,0.17429759]
[1738939123785,0.56158,99567.0,99550.0,0.17429759]
[1738939123986,0.20078,99567.0,99564.0,0.200784]
[1738939124294,0.3608,99578.0,99553.0,0.3608]
[1738939124591,0.3608,99568.0,99563.0,0.2007864]
[1738939124791,0.2007912,99561.0,99560.0,0.17429759]
[1738939125099,0.2007822,99566.0,99556.0,0.00015065]
[1738939125480,0.3608,99568.0,99556.0,0.20095005]
[1738939125791,0.2007952,99559.0,99558.0,0.17429759]
[1738939125985,0.2007952,99559.0,99557.0,0.2007987]
[1738939126590,0.2007993,99557.0,99556.0,0.00015065]
[1738939127692,0.1873,99557.0,99536.0,0.00150685]
[1738939127888,0.1873,99557.0,99556.0,0.009]
[1738939128093,0.3880993,99557.0,99556.0,0.009]
[1738939128300,0.3880993,99557.0,99536.0,0.00150685]
[1738939128301,0.2008396,99537.0,99536.0,0.00150685]
[1738939128989,0.3608,99544.0,99536.0,0.00150685]
[1738939129702,0.2008275,99543.0,99536.0,0.00150685]
[1738939129997,0.005,99537.0,99536.0,0.00250685]
[1738939130189,0.005,99537.0,99536.0,0.56514845]
[1738939130392,0.004,99544.0,99543.0,0.2008275]
[1738939130990,0.00015065,99546.0,99537.0,0.1885]
[1738939130991,0.004,99543.0,99537.0,0.1885]
[1738939131192,0.004,99543.0,99542.0,0.2008295]
[1738939131494,0.004,99543.0,99542.0,0.4808295]
[1738939132188,0.14999169,99558.0,99542.0,0.28]
[1738939132383,0.14999169,99558.0,99551.0,0.2008102]
[1738939132589,0.14999169,99558.0,99550.0,0.05768]
[1738939132789,0.14999169,99558.0,99557.0,0.2007993]
[1738939133096,0.17429759,99610.0,99550.0,0.05768]